Workbook

Sheet Project Information
C1: Project Title:
C2: Research Content: | F2: Non UNSW Markup Factor | G2: 0.35 | I2: 0.35
C3: RG Number: | F3: WRL Project Number: | G3: WRL2020xx
C4: Start Date: | E4: Select the pricing timeframe (where the majority of work will take place) | H4: 2020-07-01
C5: End Date:
C6: Client:
C7: WRL Contact Name: | D7: Smith, Grantley
C8: WRL Contact phone: | D8: =IF(D7="","",VLOOKUP(D7,StaffDetails!A:N,13,FALSE)) -> 80719862 | F8: Email | G8: =IF(D7="","",VLOOKUP(D7,StaffDetails!A:N,14,FALSE)) -> G.Smith@wrl.unsw.edu.au
C9: WRL Contact email: | D9: b.miller@wrl.unsw.edu.au
E11: WRL Project Pricing Tool
C12: Markup Factor | D12: 1 | E12: 1 | F12: 1 | G12: 1 | H12: 1 | I12: 1 | J12: 1 | K12: 1 | L12: 1 | M12: 1
D13: Smith, Grantley
D14: =IF(D12<1,1*(IF(D13="",0,INDEX(StaffDetails!$D$3:$D$1048576,MATCH(D13,StaffDetails!$A$3:$A$1048576,FALSE)))),D12*(IF(D13="",0,INDEX(StaffDetails!$D$3:$D$1048576,MATCH(D13,StaffDetails!$A$3:$A$1048576,FALSE))))) -> 320 | E14: =IF(E12<1,1*(IF(E13="",0,INDEX(StaffDetails!$D$3:$D$1048576,MATCH(E13,StaffDetails!$A$3:$A$1048576,FALSE)))),E12*(IF(E13="",0,INDEX(StaffDetails!$D$3:$D$1048576,MATCH(E13,StaffDetails!$A$3:$A$1048576,FALSE))))) -> 0 | F14: =IF(F12<1,1*(IF(F13="",0,INDEX(StaffDetails!$D$3:$D$1048576,MATCH(F13,StaffDetails!$A$3:$A$1048576,FALSE)))),F12*(IF(F13="",0,INDEX(StaffDetails!$D$3:$D$1048576,MATCH(F13,StaffDetails!$A$3:$A$1048576,FALSE))))) -> 0 | G14: =IF(G12<1,1*(IF(G13="",0,INDEX(StaffDetails!$D$3:$D$1048576,MATCH(G13,StaffDetails!$A$3:$A$1048576,FALSE)))),G12*(IF(G13="",0,INDEX(StaffDetails!$D$3:$D$1048576,MATCH(G13,StaffDetails!$A$3:$A$1048576,FALSE))))) -> 0 | H14: =IF(H12<1,1*(IF(H13="",0,INDEX(StaffDetails!$D$3:$D$1048576,MATCH(H13,StaffDetails!$A$3:$A$1048576,FALSE)))),H12*(IF(H13="",0,INDEX(StaffDetails!$D$3:$D$1048576,MATCH(H13,StaffDetails!$A$3:$A$1048576,FALSE))))) -> 0 | I14: =IF(I12<1,1*(IF(I13="",0,INDEX(StaffDetails!$D$3:$D$1048576,MATCH(I13,StaffDetails!$A$3:$A$1048576,FALSE)))),I12*(IF(I13="",0,INDEX(StaffDetails!$D$3:$D$1048576,MATCH(I13,StaffDetails!$A$3:$A$1048576,FALSE))))) -> 0 | J14: =IF(J12<1,1*(IF(J13="",0,INDEX(StaffDetails!$D$3:$D$1048576,MATCH(J13,StaffDetails!$A$3:$A$1048576,FALSE)))),J12*(IF(J13="",0,INDEX(StaffDetails!$D$3:$D$1048576,MATCH(J13,StaffDetails!$A$3:$A$1048576,FALSE))))) -> 0 | K14: =IF(K12<1,1*(IF(K13="",0,INDEX(StaffDetails!$D$3:$D$1048576,MATCH(K13,StaffDetails!$A$3:$A$1048576,FALSE)))),K12*(IF(K13="",0,INDEX(StaffDetails!$D$3:$D$1048576,MATCH(K13,StaffDetails!$A$3:$A$1048576,FALSE))))) -> 0 | L14: =IF(L12<1,1*(IF(L13="",0,INDEX(StaffDetails!$D$3:$D$1048576,MATCH(L13,StaffDetails!$A$3:$A$1048576,FALSE)))),L12*(IF(L13="",0,INDEX(StaffDetails!$D$3:$D$1048576,MATCH(L13,StaffDetails!$A$3:$A$1048576,FALSE))))) -> 0 | M14: =IF(M12<1,1*(IF(M13="",0,INDEX(StaffDetails!$D$3:$D$1048576,MATCH(M13,StaffDetails!$A$3:$A$1048576,FALSE)))),M12*(IF(M13="",0,INDEX(StaffDetails!$D$3:$D$1048576,MATCH(M13,StaffDetails!$A$3:$A$1048576,FALSE))))) -> 0
C16: Total | D16: =IF(D13="","",SUM(D20:D69)) -> 0
C17: Effective Days worked (1 Day = 7hrs) | D17: =IF(D16="","",IF(D16>0,D16/7,"")) ->  | E17: =IF(E16="","",IF(E16>0,E16/7,"")) ->  | G17: =IF(G16="","",IF(G16>0,G16/7,"")) -> 
B19: Activity | C19: Description | D19: =D13&" Hrs" -> Smith, Grantley Hrs | E19: =E13&" Hrs" -> Hrs | F19: =F13&" Hrs" -> Hrs | G19: =G13&" Hrs" -> Hrs | H19: Hrs | I19: Hrs | J19: Hrs | K19: Hrs | L19: Hrs | M19: Hrs | O19: Revenue A$
B20: 1 | O20: =SUMPRODUCT($D$14:$M$14,D20:M20) -> 0
B21: 2 | O21: =SUMPRODUCT($D$14:$M$14,D21:M21) -> 0
B22: 3 | O22: 0
B23: 4 | O23: 0
B24: 5 | O24: 0
B25: 6 | O25: 0
B26: 7 | O26: 0
B27: 8 | O27: 0
B28: 9 | O28: 0
B29: 10 | O29: 0
B30: 11 | O30: 0
B31: 12 | O31: 0
B32: 13 | O32: 0
B33: 14 | O33: 0
B34: 15 | O34: 0
B35: 16 | O35: 0
B36: 17 | O36: 0
B37: 18 | O37: 0
B38: 19 | O38: 0
B39: 20 | O39: 0
B40: 21 | O40: 0
B41: 22 | O41: 0
B42: 23 | O42: 0
B43: 24 | O43: 0
B44: 25 | O44: 0
B45: 26 | O45: 0
B46: 27 | O46: 0
B47: 28 | O47: 0
B48: 29 | O48: 0
B49: 30 | O49: 0
B50: 31 | O50: 0
B51: 32 | O51: 0
B52: 33 | O52: 0
B53: 34 | O53: =SUMPRODUCT($D$14:$M$14,D53:M53) -> 0
B54: 35 | O54: 0
B55: 36 | O55: 0
B56: 37 | O56: 0
B57: 38 | O57: 0
B58: 39 | O58: 0
B59: 40 | O59: 0
B60: 41 | O60: 0
B61: 42 | O61: 0
B62: 43 | O62: 0
B63: 44 | O63: 0
B64: 45 | O64: 0
B65: 46 | O65: =SUMPRODUCT($D$14:$M$14,D65:M65) -> 0
B66: 47 | O66: 0
B67: 48 | O67: 0
B68: 49 | O68: 0
B69: 50 | O69: 0
C70: Please Select Type | D70: UNSW HDR Candidate, External Subcontractor, Collaborators | M70: WRL Mark up (optional) | N70: Lump Sump Cost
O71: =IF(C71="HDR Candidate",(1+$G$2)*(1+M71)*N71,(1+M71)*N71) -> 0
O72: =IF(C72="HDR Candidate",(1+$G$2)*(1+M72)*N72,(1+M72)*N72) -> 0
O73: 0
O74: 0
O75: 0
D76: EXPENSES | M76: WRL Mark up (optional) | N76: Lump Sump Cost
C77: Please Select Type
O78: =(1+$G$2)*(1+M78)*N78 -> 0
O79: =(1+$G$2)*(1+M79)*N79 -> 0
O80: 0
O81: 0
O82: 0
O83: 0
O84: 0
O85: 0
O86: 0
O87: 0
O88: 0
O89: 0
O90: 0
O91: 0
O92: 0
D96: =IF(D13="","",D13) -> Smith, Grantley | O96: AUD
C97: Total Revenue $ | D97: =IF(D96="","",D16*D14) -> 0 | O97: =SUM(D97:N97) -> 0
C98: Total Expenses | O98: =SUM(O71:O75,O78:O92) -> 0
C99: Grand Total Excluding GST | O99: =SUM(O20:O92) -> 0
C100: Grand Total Including GST | O100: =O99*1.1 -> 0

Sheet RPU Budget_Template (hidden)
A1: BUDGET TABLE | E1: Generated on: | O1: ='Project Information'!G3&" - "&DAY(F1)&"-"&MONTH(F1)&"-"&YEAR(F1) -> WRL2020xx - 0-1-1900
A3: Project Title:
A4: Project Sponsor:
A5: Project Start Date: | C5: Project End Date:
A7: UNSW Personnel: | B7: Classification | C7: Level | D7: Step | E7: Start Date | F7: End Date | G7: Location | H7: UNSW Indirect % | I7: Markup %
B8: =IF(A8="","",VLOOKUP(A8,StaffDetails!A:K,7,FALSE)) ->  | C8: =IF(A8="","",VLOOKUP(A8,StaffDetails!A:K,8,FALSE)) ->  | D8: =IF(A8="","",VLOOKUP(A8,StaffDetails!A:K,9,FALSE)) ->  | E8: =IF(A8="","",$B$5) ->  | F8: =IF(A8="","",$D$5) ->  | G8: =IF(A8="","","UNSW (excluding Canberra campus)") ->  | H8: =IF(A8="","",'Project Information'!$I$2) ->  | I8: =IF(A21="","",L21/(J21+H21)) -> 
B9: =IF(A9="","",VLOOKUP(A9,StaffDetails!A:K,7,FALSE)) ->  | C9: =IF(A9="","",VLOOKUP(A9,StaffDetails!A:K,8,FALSE)) ->  | D9: =IF(A9="","",VLOOKUP(A9,StaffDetails!A:K,9,FALSE)) ->  | E9: =IF(A9="","",$B$5) ->  | F9: =IF(A9="","",$D$5) ->  | G9: =IF(A9="","","UNSW (excluding Canberra campus)") ->  | H9: =IF(A9="","",'Project Information'!$I$2) -> 
B10: =IF(A10="","",VLOOKUP(A10,StaffDetails!A:K,7,FALSE)) ->  | C10: =IF(A10="","",VLOOKUP(A10,StaffDetails!A:K,8,FALSE)) ->  | D10: =IF(A10="","",VLOOKUP(A10,StaffDetails!A:K,9,FALSE)) ->  | H10: =IF(A10="","",'Project Information'!$I$2) -> 
B11: =IF(A11="","",VLOOKUP(A11,StaffDetails!A:K,7,FALSE)) ->  | C11: =IF(A11="","",VLOOKUP(A11,StaffDetails!A:K,8,FALSE)) ->  | D11: =IF(A11="","",VLOOKUP(A11,StaffDetails!A:K,9,FALSE)) ->  | H11: =IF(A11="","",'Project Information'!$I$2) -> 
B12: =IF(A12="","",VLOOKUP(A12,StaffDetails!A:K,7,FALSE)) ->  | C12: =IF(A12="","",VLOOKUP(A12,StaffDetails!A:K,8,FALSE)) ->  | D12: =IF(A12="","",VLOOKUP(A12,StaffDetails!A:K,9,FALSE)) ->  | H12: =IF(A12="","",'Project Information'!$I$2) -> 
B13: =IF(A13="","",VLOOKUP(A13,StaffDetails!A:K,7,FALSE)) ->  | C13: =IF(A13="","",VLOOKUP(A13,StaffDetails!A:K,8,FALSE)) ->  | D13: =IF(A13="","",VLOOKUP(A13,StaffDetails!A:K,9,FALSE)) ->  | H13: =IF(A13="","",'Project Information'!$I$2) -> 
B14: =IF(A14="","",VLOOKUP(A14,StaffDetails!A:K,7,FALSE)) ->  | C14: =IF(A14="","",VLOOKUP(A14,StaffDetails!A:K,8,FALSE)) ->  | D14: =IF(A14="","",VLOOKUP(A14,StaffDetails!A:K,9,FALSE)) ->  | H14: =IF(A14="","",'Project Information'!$I$2) -> 
B15: =IF(A15="","",VLOOKUP(A15,StaffDetails!A:K,7,FALSE)) ->  | C15: =IF(A15="","",VLOOKUP(A15,StaffDetails!A:K,8,FALSE)) ->  | D15: =IF(A15="","",VLOOKUP(A15,StaffDetails!A:K,9,FALSE)) ->  | H15: =IF(A15="","",'Project Information'!$I$2) -> 
B16: =IF(A16="","",VLOOKUP(A16,StaffDetails!A:K,7,FALSE)) ->  | C16: =IF(A16="","",VLOOKUP(A16,StaffDetails!A:K,8,FALSE)) ->  | D16: =IF(A16="","",VLOOKUP(A16,StaffDetails!A:K,9,FALSE)) ->  | H16: =IF(A16="","",'Project Information'!$I$2) -> 
B17: =IF(A17="","",VLOOKUP(A17,StaffDetails!A:K,7,FALSE)) ->  | C17: =IF(A17="","",VLOOKUP(A17,StaffDetails!A:K,8,FALSE)) ->  | D17: =IF(A17="","",VLOOKUP(A17,StaffDetails!A:K,9,FALSE)) ->  | H17: =IF(A17="","",'Project Information'!$I$2) -> 
B18: =IF(A18="","",VLOOKUP(A18,StaffDetails!A:K,7,FALSE)) ->  | C18: =IF(A18="","",VLOOKUP(A18,StaffDetails!A:K,8,FALSE)) ->  | D18: =IF(A18="","",VLOOKUP(A18,StaffDetails!A:K,9,FALSE)) ->  | H18: =IF(A18="","",'Project Information'!$I$2) -> 
A20: UNSW Personnel Costs: | B20: Period Start | C20: Period End | D20: FTE | E20: Daily Rate (base salary and loadings) | F20: Daily rate to sponsor (incl all costs) | G20: Work Days | H20: Base Salary Cost | I20: Superannuation % | J20: Total Salary On-Costs | K20: Base Salary Plus On-Costs | L20: Total Markup Rate ($) | M20: UNSW MECR | N20: POW amount to researcher | O20: POW on-costs | P20: Total Cost | T20: Sal_Markup_Factor
B21: =IF(A21="","",$B$5) ->  | C21: =IF(A21="","",$D$5) ->  | E21: =IF(A21="","",VLOOKUP(A21,StaffDetails!A:K,10,FALSE)) ->  | F21: =IF(A21="","",VLOOKUP(A21,StaffDetails!A:K,11,FALSE)*T21) ->  | H21: =IF(A21="","",E21*G21) ->  | I21: =IF(A21="","",VLOOKUP(A21,StaffDetails!A:K,3,FALSE)) ->  | J21: =IF(A21="","",IF(I21=0.17,H21*0.294165,H21*0.215078)) ->  | K21: =IF(A21="","",J21+H21) ->  | L21: =IF(A21="","",((G21*F21-(1+'Project Information'!$G$2)*K21)/(1+'Project Information'!$G$2))) ->  | M21: =IF(A21="","",(K21+L21)*'Project Information'!$I$2) ->  | P21: =IF(A21="","",H21+J21+L21+M21) -> 
B22: =IF(A22="","",$B$5) ->  | C22: =IF(A22="","",$D$5) ->  | E22: =IF(A22="","",VLOOKUP(A22,StaffDetails!A:K,10,FALSE)) ->  | F22: =IF(A22="","",VLOOKUP(A22,StaffDetails!A:K,11,FALSE)*T22) ->  | H22: =IF(A22="","",E22*G22) ->  | I22: =IF(A22="","",VLOOKUP(A22,StaffDetails!A:K,3,FALSE)) ->  | J22: =IF(A22="","",IF(I22=0.17,H22*0.294165,H22*0.215078)) ->  | K22: =IF(A22="","",J22+H22) ->  | L22: =IF(A22="","",((G22*F22-(1+'Project Information'!$G$2)*K22)/(1+'Project Information'!$G$2))) ->  | M22: =IF(A22="","",(K22+L22)*'Project Information'!$I$2) -> 
E23: =IF(A23="","",VLOOKUP(A23,StaffDetails!A:K,10,FALSE)) ->  | F23: =IF(A23="","",VLOOKUP(A23,StaffDetails!A:K,11,FALSE)*T23) ->  | I23: =IF(A23="","",VLOOKUP(A23,StaffDetails!A:K,3,FALSE)) ->  | L23: =IF(A23="","",((G23*F23-(1+'Project Information'!$G$2)*K23)/(1+'Project Information'!$G$2))) ->  | M23: =IF(A23="","",(K23+L23)*'Project Information'!$I$2) -> 
E24: =IF(A24="","",VLOOKUP(A24,StaffDetails!A:K,10,FALSE)) ->  | F24: =IF(A24="","",VLOOKUP(A24,StaffDetails!A:K,11,FALSE)*T24) ->  | I24: =IF(A24="","",VLOOKUP(A24,StaffDetails!A:K,3,FALSE)) ->  | L24: =IF(A24="","",((G24*F24-(1+'Project Information'!$G$2)*K24)/(1+'Project Information'!$G$2))) ->  | M24: =IF(A24="","",(K24+L24)*'Project Information'!$I$2) -> 
E25: =IF(A25="","",VLOOKUP(A25,StaffDetails!A:K,10,FALSE)) ->  | F25: =IF(A25="","",VLOOKUP(A25,StaffDetails!A:K,11,FALSE)*T25) ->  | I25: =IF(A25="","",VLOOKUP(A25,StaffDetails!A:K,3,FALSE)) ->  | L25: =IF(A25="","",((G25*F25-(1+'Project Information'!$G$2)*K25)/(1+'Project Information'!$G$2))) ->  | M25: =IF(A25="","",(K25+L25)*'Project Information'!$I$2) -> 
E26: =IF(A26="","",VLOOKUP(A26,StaffDetails!A:K,10,FALSE)) ->  | F26: =IF(A26="","",VLOOKUP(A26,StaffDetails!A:K,11,FALSE)*T26) ->  | I26: =IF(A26="","",VLOOKUP(A26,StaffDetails!A:K,3,FALSE)) ->  | L26: =IF(A26="","",((G26*F26-(1+'Project Information'!$G$2)*K26)/(1+'Project Information'!$G$2))) ->  | M26: =IF(A26="","",(K26+L26)*'Project Information'!$I$2) -> 
E27: =IF(A27="","",VLOOKUP(A27,StaffDetails!A:K,10,FALSE)) ->  | F27: =IF(A27="","",VLOOKUP(A27,StaffDetails!A:K,11,FALSE)*T27) ->  | I27: =IF(A27="","",VLOOKUP(A27,StaffDetails!A:K,3,FALSE)) ->  | L27: =IF(A27="","",((G27*F27-(1+'Project Information'!$G$2)*K27)/(1+'Project Information'!$G$2))) ->  | M27: =IF(A27="","",(K27+L27)*'Project Information'!$I$2) -> 
E28: =IF(A28="","",VLOOKUP(A28,StaffDetails!A:K,10,FALSE)) ->  | F28: =IF(A28="","",VLOOKUP(A28,StaffDetails!A:K,11,FALSE)*T28) ->  | I28: =IF(A28="","",VLOOKUP(A28,StaffDetails!A:K,3,FALSE)) ->  | L28: =IF(A28="","",((G28*F28-(1+'Project Information'!$G$2)*K28)/(1+'Project Information'!$G$2))) ->  | M28: =IF(A28="","",(K28+L28)*'Project Information'!$I$2) -> 
E29: =IF(A29="","",VLOOKUP(A29,StaffDetails!A:K,10,FALSE)) ->  | F29: =IF(A29="","",VLOOKUP(A29,StaffDetails!A:K,11,FALSE)*T29) ->  | I29: =IF(A29="","",VLOOKUP(A29,StaffDetails!A:K,3,FALSE)) ->  | L29: =IF(A29="","",((G29*F29-(1+'Project Information'!$G$2)*K29)/(1+'Project Information'!$G$2))) ->  | M29: =IF(A29="","",(K29+L29)*'Project Information'!$I$2) -> 
E30: =IF(A30="","",VLOOKUP(A30,StaffDetails!A:K,10,FALSE)) ->  | F30: =IF(A30="","",VLOOKUP(A30,StaffDetails!A:K,11,FALSE)*T30) ->  | I30: =IF(A30="","",VLOOKUP(A30,StaffDetails!A:K,3,FALSE)) ->  | L30: =IF(A30="","",((G30*F30-(1+'Project Information'!$G$2)*K30)/(1+'Project Information'!$G$2))) ->  | M30: =IF(A30="","",(K30+L30)*'Project Information'!$I$2) -> 
E31: =IF(A31="","",VLOOKUP(A31,StaffDetails!A:K,10,FALSE)) ->  | F31: =IF(A31="","",VLOOKUP(A31,StaffDetails!A:K,11,FALSE)*T31) ->  | I31: =IF(A31="","",VLOOKUP(A31,StaffDetails!A:K,3,FALSE)) ->  | L31: =IF(A31="","",((G31*F31-(1+'Project Information'!$G$2)*K31)/(1+'Project Information'!$G$2))) ->  | M31: =IF(A31="","",(K31+L31)*'Project Information'!$I$2) -> 
A32: Project Sub-Total | G32: =SUM(G21:G31) -> 0 | H32: =SUM(H21:H31) -> 0 | J32: =SUM(J21:J31) -> 0 | K32: =SUM(K21:K31) -> 0 | L32: =SUM(L21:L31) -> 0 | M32: =SUM(M21:M31) -> 0 | P32: =SUM(P21:P31) -> 0
A34: UNSW HDR Candidate, External Subcontractor and Collaborator | B34: Period | C34: Lump Sum | D34: Rate | E34: Quantity | F34: Base Cost | G34: Markup (%) | H34: Markup Rate ($) | I34: UNSW MECR | J34: Total Cost
F35: =IF(A35="","",C35) ->  | H35: =IF(A35="","",F35*G35) ->  | I35: =IF(A35="","",IF(A35="HDR Candidate",(F35+H35)*'Project Information'!$G$2,(F35+G35)*0)) ->  | J35: =IF(A35="","",F35+H35+I35) -> 
F36: =IF(A36="","",C36) ->  | H36: =IF(A36="","",F36*G36) ->  | I36: =IF(A36="","",IF(A36="HDR Candidate",(F36+H36)*'Project Information'!$G$2,(F36+G36)*0)) ->  | J36: =IF(A36="","",F36+H36+I36) -> 
I37: =IF(A37="","",IF(A37="HDR Candidate",(F37+H37)*'Project Information'!$G$2,(F37+G37)*0)) ->  | J37: =IF(A37="","",F37+H37+I37) -> 
I38: =IF(A38="","",IF(A38="HDR Candidate",(F38+H38)*'Project Information'!$G$2,(F38+G38)*0)) ->  | J38: =IF(A38="","",F38+H38+I38) -> 
I39: =IF(A39="","",IF(A39="HDR Candidate",(F39+H39)*'Project Information'!$G$2,(F39+G39)*0)) ->  | J39: =IF(A39="","",F39+H39+I39) -> 
A40: Project Sub-Total | F40: =SUM(F35:F39) -> 0 | H40: =SUM(H35:H39) -> 0 | I40: =SUM(I35:I39) -> 0 | J40: 0
A42: Non-Personnel Costs | B42: Period | C42: Description | D42: Lump Sum | E42: Rate | F42: Quantity | G42: Base Cost | H42: Markup (%) | I42: Markup Rate ($) | J42: UNSW MECR | K42: Total Cost
F43: =IF(A43="","",C43) ->  | G43: =IF(A43="","",D43) ->  | I43: =IF(G43="","",G43*H43) ->  | J43: =IF(G43="","",'Project Information'!$G$2*(G43+I43)) ->  | K43: =IF(G43="","",J43+I43+G43) -> 
F44: =IF(A44="","",C44) ->  | G44: =IF(A44="","",D44) ->  | I44: =IF(G44="","",G44*H44) ->  | J44: =IF(G44="","",'Project Information'!$G$2*(G44+I44)) ->  | K44: =IF(G44="","",J44+I44+G44) -> 
G45: =IF(A45="","",D45) ->  | I45: =IF(G45="","",G45*H45) ->  | J45: =IF(G45="","",'Project Information'!$G$2*(G45+I45)) -> 
J46: =IF(G46="","",'Project Information'!$G$2*(G46+I46)) -> 
J47: =IF(G47="","",'Project Information'!$G$2*(G47+I47)) -> 
J48: =IF(G48="","",'Project Information'!$G$2*(G48+I48)) -> 
J49: =IF(G49="","",'Project Information'!$G$2*(G49+I49)) -> 
J50: =IF(G50="","",'Project Information'!$G$2*(G50+I50)) -> 
J51: =IF(G51="","",'Project Information'!$G$2*(G51+I51)) -> 
J52: =IF(G52="","",'Project Information'!$G$2*(G52+I52)) -> 
J53: =IF(G53="","",'Project Information'!$G$2*(G53+I53)) -> 
J54: =IF(G54="","",'Project Information'!$G$2*(G54+I54)) -> 
J55: =IF(G55="","",'Project Information'!$G$2*(G55+I55)) -> 
J56: =IF(G56="","",'Project Information'!$G$2*(G56+I56)) -> 
J57: =IF(G57="","",'Project Information'!$G$2*(G57+I57)) -> 
A58: Project Sub-Total | G58: =SUM(G43:G57) -> 0 | I58: =SUM(I43:I57) -> 0 | J58: =SUM(J43:J57) -> 0 | K58: 0
A61: BUDGET SUMMARY | C61: =CONCATENATE("Year 1 ","(",YEAR('Project Information'!H4),")") -> Year 1 (2020) | E61: Total (exc) GST
A62: Personnel Costs | C62: Market Price | D62: Minimum Price | E62: Market Price | F62: Minimum Price
A63: UNSW Personnel
A64: =IF(A21="","",A21) ->  | C64: =IF(P21="","",P21) ->  | D64: =IF(P21="","",(P21-L21)) ->  | E64: =C64 ->  | F64: =D64 -> 
A65: =IF(A22="","",A22) ->  | E65: =C65 -> 
A75: Non-UNSW Personnel
A76: =IF(A35="","",A35) ->  | C76: =IF(J35="","",J35) ->  | D76: =IF(J35="","",J35-H35) ->  | E76: =C76 -> 
A77: =IF(A36="","",A36) ->  | C77: =IF(J36="","",J36) ->  | D77: =IF(J36="","",J36-H36) -> 
A78: =IF(A37="","",A37) ->  | C78: =IF(J37="","",J37) ->  | D78: =IF(J37="","",J37-H37) -> 
A79: =IF(A38="","",A38) ->  | C79: =IF(J38="","",J38) ->  | D79: =IF(J38="","",J38-H38) -> 
A80: =IF(A39="","",A39) ->  | C80: =IF(J39="","",J39) ->  | D80: =IF(J39="","",J39-H39) -> 
A81: Sub-Total | C81: =SUM(C63:C80) -> 0 | D81: =SUM(D63:D80) -> 0 | E81: 0 | F81: 0
A82: Non-Personnel Costs
A83: =IF(A43="","",A43) ->  | C83: =IF(K43="","",K43) ->  | D83: =IF(K43="","",K43-I43) ->  | E83: =C83 -> 
A84: =IF(A44="","",A44) ->  | C84: =IF(K44="","",K44) ->  | D84: =IF(K44="","",K44-I44) -> 
A98: Sub-Total | C98: =SUM(C83:C97) -> 0 | D98: =SUM(D83:D97) -> 0 | E98: 0 | F98: 0
A100: Total | C100: =C81+C98 -> 0 | D100: =D81+D98 -> 0 | E100: 0 | F100: 0
A101: GST applicable | B101: Sale (10%) | C101: =C100*0.1 -> 0 | D101: =D100*0.1 -> 0 | E101: 0 | F101: 0
A102: Grand Total | C102: =C100+C101 -> 0 | D102: =D100+D101 -> 0 | E102: 0 | F102: 0
A106: FOR INTERNAL USE ONLY:
C107: =CONCATENATE("Year 1 ","(",YEAR(StaffDetails!J1),")") -> Year 1 (2020) | E107: Total
A108: Retained by Researcher (Market Price less Minimum Price) | C108: =C100-D100 -> 0 | E108: =C108 -> 0
A110: Minimum Economic Cost Recovery (MECR)
A111: UNSW Personnel | C111: =M32 -> 0 | E111: =C111 -> 0
A112: Other | C112: =I40+J58 -> 0 | E112: =C112 -> 0

Sheet debug (hidden)
A1: Manager

Sheet StaffDetails (hidden)
A1: Source: Rates Updated from UNSW HR Website 5/12/2018 - https://www.hr.unsw.edu.au/services/salaries | J1: ='Project Information'!H4 -> 2020-07-01
A2: Name | B2: Salary Level | C2: Superannuation Rate | D2: 2020 Chargeout | E2: Adjusted Charge Out - (Where Applicable) | G2: Classification | H2: Level | I2: Step | J2: Daily Rate (base salary and loadings) | K2: Daily Rate to sponsor (incl all costs) | M2: Phone | N2: Email
A4: Blacka, Anna | B4: General Staff 4 3 | C4: 0.17 | D4: 125 | E4: =IF(ISNA(HLOOKUP(StaffDetails!A4,'Project Information'!$D$13:$J$14,2,FALSE)),D4,(HLOOKUP(StaffDetails!A4,'Project Information'!$D$13:$J$14,2,FALSE))) -> 125 | G4: General Staff | H4: =IF(LEFT(B4,1)="G", IF(RIGHT(B4,1)="n",MID(B4,15,3),MID(B4,15,1)),MID(B4,16,1)) -> 4 | I4: =IF(LEFT(B4,1)="G", IF(RIGHT(B4,1)="n",RIGHT(B4,3),RIGHT(B4,1)),RIGHT(B4,1)) -> 3 | J4: =VLOOKUP(B4,'Salary Information'!$A:$L,MATCH($J$1,'Salary Information'!$A$1:$L$1,0),FALSE) -> 289.6370164 | K4: =E4*7 -> 875 | M4: 80719837 | N4: a.blacka@wrl.unsw.edu.au
A5: Blacka, Matthew | B5: General Staff 8 5 | C5: 0.17 | D5: 250 | E5: =IF(ISNA(HLOOKUP(StaffDetails!A5,'Project Information'!$D$13:$J$14,2,FALSE)),D5,(HLOOKUP(StaffDetails!A5,'Project Information'!$D$13:$J$14,2,FALSE))) -> 250 | G5: General Staff | H5: 8 | I5: 5 | J5: =VLOOKUP(B5,'Salary Information'!$A:$L,MATCH($J$1,'Salary Information'!$A$1:$L$1,0),FALSE) -> 484.3837256 | K5: 1750 | M5: 80719837 | N5: m.blacka@wrl.unsw.edu.au
A6: Carley, James | B6: Academic Staff C 6 | C6: 0.17 | D6: 300 | E6: =IF(ISNA(HLOOKUP(StaffDetails!A6,'Project Information'!$D$13:$J$14,2,FALSE)),D6,(HLOOKUP(StaffDetails!A6,'Project Information'!$D$13:$J$14,2,FALSE))) -> 300 | G6: Academic Staff | H6: C | I6: 6 | J6: =VLOOKUP(B6,'Salary Information'!$A:$L,MATCH($J$1,'Salary Information'!$A$1:$L$1,0),FALSE) -> 601.866773 | K6: 2100 | M6: 80719863 | N6: james.carley@unsw.edu.au
A7: Carlino, Grace | B7: General Staff 4 3 | C7: 0.17 | D7: 125 | E7: =IF(ISNA(HLOOKUP(StaffDetails!A7,'Project Information'!$D$13:$J$14,2,FALSE)),D7,(HLOOKUP(StaffDetails!A7,'Project Information'!$D$13:$J$14,2,FALSE))) -> 125 | G7: General Staff | H7: 4 | I7: 3 | J7: =VLOOKUP(B7,'Salary Information'!$A:$L,MATCH($J$1,'Salary Information'!$A$1:$L$1,0),FALSE) -> 289.6370164 | K7: =E7*7 -> 875 | M7: 80719841 | N7: g.carlino@wrl.unsw.edu.au
A8: Coghlan, Ian | B8: General Staff 7 4 | C8: 0.17 | D8: 195 | E8: =IF(ISNA(HLOOKUP(StaffDetails!A8,'Project Information'!$D$13:$J$14,2,FALSE)),D8,(HLOOKUP(StaffDetails!A8,'Project Information'!$D$13:$J$14,2,FALSE))) -> 195 | G8: General Staff | H8: 7 | I8: 4 | J8: =VLOOKUP(B8,'Salary Information'!$A:$L,MATCH($J$1,'Salary Information'!$A$1:$L$1,0),FALSE) -> 416.2385321 | K8: 1365 | M8: 80719866 | N8: i.coghlan@wrl.unsw.edu.au
A9: Cox, Ron | B9: Academic Staff D 4 | C9: 0.17 | D9: 360 | E9: =IF(ISNA(HLOOKUP(StaffDetails!A9,'Project Information'!$D$13:$J$14,2,FALSE)),D9,(HLOOKUP(StaffDetails!A9,'Project Information'!$D$13:$J$14,2,FALSE))) -> 360 | G9: Academic Staff | H9: D | I9: 4 | J9: =VLOOKUP(B9,'Salary Information'!$A:$L,MATCH($J$1,'Salary Information'!$A$1:$L$1,0),FALSE) -> 689.3936976 | K9: 2520 | M9: 80719832 | N9: r.cox@unsw.edu.au
A10: Drummond, Chris | B10: General Staff 6 1 | C10: 0.17 | D10: 195 | E10: =IF(ISNA(HLOOKUP(StaffDetails!A10,'Project Information'!$D$13:$J$14,2,FALSE)),D10,(HLOOKUP(StaffDetails!A10,'Project Information'!$D$13:$J$14,2,FALSE))) -> 195 | G10: General Staff | H10: 6 | I10: 1 | J10: =VLOOKUP(B10,'Salary Information'!$A:$L,MATCH($J$1,'Salary Information'!$A$1:$L$1,0),FALSE) -> 350.6302353 | K10: =E10*7 -> 1365 | M10: 80719874 | N10: c.drummond@wrl.unsw.edu.au
A11: Deiber, Mathieu | B11: General Staff 6 1 | C11: 0.17 | D11: 185 | E11: =IF(ISNA(HLOOKUP(StaffDetails!A11,'Project Information'!$D$13:$J$14,2,FALSE)),D11,(HLOOKUP(StaffDetails!A11,'Project Information'!$D$13:$J$14,2,FALSE))) -> 185 | G11: General Staff | H11: 6 | I11: 1 | J11: =VLOOKUP(B11,'Salary Information'!$A:$L,MATCH($J$1,'Salary Information'!$A$1:$L$1,0),FALSE) -> 350.6302353 | K11: 1295 | M11: 80719847 | N11: m.deiber@wrl.unsw.edu.au
A12: Flocard, Francois | B12: General Staff 8 1 | C12: 0.17 | D12: 250 | E12: =IF(ISNA(HLOOKUP(StaffDetails!A12,'Project Information'!$D$13:$J$14,2,FALSE)),D12,(HLOOKUP(StaffDetails!A12,'Project Information'!$D$13:$J$14,2,FALSE))) -> 250 | G12: General Staff | H12: 8 | I12: 1 | J12: =VLOOKUP(B12,'Salary Information'!$A:$L,MATCH($J$1,'Salary Information'!$A$1:$L$1,0),FALSE) -> 429.9082569 | K12: 1750 | M12: 80719823 | N12: f.flocard@wrl.unsw.edu.au
A13: Harrison, Alice | B13: General Staff 6 2 | C13: 0.17 | D13: 185 | E13: =IF(ISNA(HLOOKUP(StaffDetails!A13,'Project Information'!$D$13:$J$14,2,FALSE)),D13,(HLOOKUP(StaffDetails!A13,'Project Information'!$D$13:$J$14,2,FALSE))) -> 185 | G13: General Staff | H13: 6 | I13: 2 | J13: =VLOOKUP(B13,'Salary Information'!$A:$L,MATCH($J$1,'Salary Information'!$A$1:$L$1,0),FALSE) -> 362.2576785 | K13: 1295 | M13: 80719867 | N13: a.harrison@wrl.unsw.edu.au
A14: Herold, Judy | B14: General Staff 7 1 | C14: 0.17 | D14: 195 | E14: =IF(ISNA(HLOOKUP(StaffDetails!A14,'Project Information'!$D$13:$J$14,2,FALSE)),D14,(HLOOKUP(StaffDetails!A14,'Project Information'!$D$13:$J$14,2,FALSE))) -> 195 | G14: General Staff | H14: 7 | I14: 1 | J14: =VLOOKUP(B14,'Salary Information'!$A:$L,MATCH($J$1,'Salary Information'!$A$1:$L$1,0),FALSE) -> 384.5911448 | K14: 1365 | M14: 80719848 | N14: j.herold@wrl.unsw.edu.au
A15: Howe, Dan | B15: General Staff 6 2 | C15: 0.17 | D15: 185 | E15: =IF(ISNA(HLOOKUP(StaffDetails!A15,'Project Information'!$D$13:$J$14,2,FALSE)),D15,(HLOOKUP(StaffDetails!A15,'Project Information'!$D$13:$J$14,2,FALSE))) -> 185 | G15: General Staff | H15: 6 | I15: 2 | J15: =VLOOKUP(B15,'Salary Information'!$A:$L,MATCH($J$1,'Salary Information'!$A$1:$L$1,0),FALSE) -> 362.2576785 | K15: 1295 | M15: 80719856 | N15: d.howe@wrl.unsw.edu.au
A16: Glamore, William | B16: Academic Staff D 1 | C16: 0.17 | D16: 300 | E16: =IF(ISNA(HLOOKUP(StaffDetails!A16,'Project Information'!$D$13:$J$14,2,FALSE)),D16,(HLOOKUP(StaffDetails!A16,'Project Information'!$D$13:$J$14,2,FALSE))) -> 300 | G16: Academic Staff | H16: D | I16: 1 | J16: =VLOOKUP(B16,'Salary Information'!$A:$L,MATCH($J$1,'Salary Information'!$A$1:$L$1,0),FALSE) -> 627.6146789 | K16: 2100 | M16: 80719868 | N16: w.glamore@wrl.unsw.edu.au
A17: Jenkins, Rob | B17: General Staff 6 3 | C17: 0.17 | D17: 125 | E17: =IF(ISNA(HLOOKUP(StaffDetails!A17,'Project Information'!$D$13:$J$14,2,FALSE)),D17,(HLOOKUP(StaffDetails!A17,'Project Information'!$D$13:$J$14,2,FALSE))) -> 125 | G17: General Staff | H17: 6 | I17: 3 | J17: =VLOOKUP(B17,'Salary Information'!$A:$L,MATCH($J$1,'Salary Information'!$A$1:$L$1,0),FALSE) -> 374.0406861 | K17: 875 | M17: 80719830 | N17: r.jenkins@wrl.unsw.edu.au
A18: Johnson, Coral | B18: General Staff 4 3 | C18: 0.17 | D18: 125 | E18: =IF(ISNA(HLOOKUP(StaffDetails!A18,'Project Information'!$D$13:$J$14,2,FALSE)),D18,(HLOOKUP(StaffDetails!A18,'Project Information'!$D$13:$J$14,2,FALSE))) -> 125 | G18: General Staff | H18: 4 | I18: 3 | J18: =VLOOKUP(B18,'Salary Information'!$A:$L,MATCH($J$1,'Salary Information'!$A$1:$L$1,0),FALSE) -> 289.6370164 | K18: 875 | M18: 80719827 | N18: c.johnson@wrl.unsw.edu.au
A19: Lumiatti, Gabriela | B19: General Staff 5 3 | C19: 0.17 | D19: 185 | E19: =IF(ISNA(HLOOKUP(StaffDetails!A19,'Project Information'!$D$13:$J$14,2,FALSE)),D19,(HLOOKUP(StaffDetails!A19,'Project Information'!$D$13:$J$14,2,FALSE))) -> 185 | G19: General Staff | H19: 5 | I19: 3 | J19: =VLOOKUP(B19,'Salary Information'!$A:$L,MATCH($J$1,'Salary Information'!$A$1:$L$1,0),FALSE) -> 319.1743119 | K19: 1295 | M19: 80719843 | N19: g.lumiatti@wrl.unsw.edu.au
A20: Mathews, Ross | B20: General Staff 5 5 | C20: 0.17 | D20: 125 | E20: =IF(ISNA(HLOOKUP(StaffDetails!A20,'Project Information'!$D$13:$J$14,2,FALSE)),D20,(HLOOKUP(StaffDetails!A20,'Project Information'!$D$13:$J$14,2,FALSE))) -> 125 | G20: General Staff | H20: 5 | I20: 5 | J20: =VLOOKUP(B20,'Salary Information'!$A:$L,MATCH($J$1,'Salary Information'!$A$1:$L$1,0),FALSE) -> 338.8831272 | K20: 875 | M20: 80719831 | N20: ross.mathews@unsw.edu.au
A21: Miller, Brett | B21: General Staff 10+ Min | C21: 0.0925 | D21: 320 | E21: =IF(ISNA(HLOOKUP(StaffDetails!A21,'Project Information'!$D$13:$J$14,2,FALSE)),D21,(HLOOKUP(StaffDetails!A21,'Project Information'!$D$13:$J$14,2,FALSE))) -> 320 | G21: General Staff | H21: 10+ | I21: Min | J21: =VLOOKUP(B21,'Salary Information'!$A:$L,MATCH($J$1,'Salary Information'!$A$1:$L$1,0),FALSE) -> 544.9421619 | K21: 2240 | M21: 80719846 | N21: b.miller@wrl.unsw.edu.au
A22: Modra, Ben | B22: General Staff 8 2 | C22: 0.17 | D22: 250 | E22: =IF(ISNA(HLOOKUP(StaffDetails!A22,'Project Information'!$D$13:$J$14,2,FALSE)),D22,(HLOOKUP(StaffDetails!A22,'Project Information'!$D$13:$J$14,2,FALSE))) -> 250 | G22: General Staff | H22: 8 | I22: 2 | J22: =VLOOKUP(B22,'Salary Information'!$A:$L,MATCH($J$1,'Salary Information'!$A$1:$L$1,0),FALSE) -> 443.4902274 | K22: 1750 | M22: 80719837 | N22: b.modra@wrl.unsw.edu.au
A23: Montano, Laura | B23: General Staff 6 1 | C23: 0.17 | D23: 185 | E23: =IF(ISNA(HLOOKUP(StaffDetails!A23,'Project Information'!$D$13:$J$14,2,FALSE)),D23,(HLOOKUP(StaffDetails!A23,'Project Information'!$D$13:$J$14,2,FALSE))) -> 185 | G23: General Staff | H23: =IF(LEFT(B23,1)="G", IF(RIGHT(B23,1)="n",MID(B23,15,3),MID(B23,15,1)),MID(B23,16,1)) -> 6 | I23: =IF(LEFT(B23,1)="G", IF(RIGHT(B23,1)="n",RIGHT(B23,3),RIGHT(B23,1)),RIGHT(B23,1)) -> 1 | J23: =VLOOKUP(B23,'Salary Information'!$A:$L,MATCH($J$1,'Salary Information'!$A$1:$L$1,0),FALSE) -> 350.6302353 | K23: =E23*7 -> 1295 | N23: l.montano@wrl.unsw.edu.au
A24: O'Carroll, Denis | B24: Academic Staff E 1 | C24: 0.17 | D24: 360 | E24: =IF(ISNA(HLOOKUP(StaffDetails!A24,'Project Information'!$D$13:$J$14,2,FALSE)),D24,(HLOOKUP(StaffDetails!A24,'Project Information'!$D$13:$J$14,2,FALSE))) -> 360 | G24: Academic Staff | H24: E | I24: 1 | J24: =VLOOKUP(B24,'Salary Information'!$A:$L,MATCH($J$1,'Salary Information'!$A$1:$L$1,0),FALSE) -> 802.7044276 | K24: =E24*7 -> 2520 | M24: 80719822 | N24: d.ocarroll@wrl.unsw.edu.au
A25: Paice, Larry | B25: General Staff 6 2 | C25: 0.17 | D25: 125 | E25: =IF(ISNA(HLOOKUP(StaffDetails!A25,'Project Information'!$D$13:$J$14,2,FALSE)),D25,(HLOOKUP(StaffDetails!A25,'Project Information'!$D$13:$J$14,2,FALSE))) -> 125 | G25: General Staff | H25: 6 | I25: 2 | J25: =VLOOKUP(B25,'Salary Information'!$A:$L,MATCH($J$1,'Salary Information'!$A$1:$L$1,0),FALSE) -> 362.2576785 | K25: 875 | M25: 80719875 | N25: l.paice@wrl.unsw.edu.au
A26: Rahman, Priom | B26: General Staff 6 1 | C26: 0.17 | D26: 185 | E26: =IF(ISNA(HLOOKUP(StaffDetails!A26,'Project Information'!$D$13:$J$14,2,FALSE)),D26,(HLOOKUP(StaffDetails!A26,'Project Information'!$D$13:$J$14,2,FALSE))) -> 185 | G26: General Staff | H26: 6 | I26: 1 | J26: =VLOOKUP(B26,'Salary Information'!$A:$L,MATCH($J$1,'Salary Information'!$A$1:$L$1,0),FALSE) -> 350.6302353 | K26: 1295 | M26: 80719840 | N26: p.rahman@wrl.unsw.edu.au
A27: Rayner, Duncan | B27: General Staff 7 4 | C27: 0.17 | D27: 250 | E27: =IF(ISNA(HLOOKUP(StaffDetails!A27,'Project Information'!$D$13:$J$14,2,FALSE)),D27,(HLOOKUP(StaffDetails!A27,'Project Information'!$D$13:$J$14,2,FALSE))) -> 250 | G27: General Staff | H27: 7 | I27: 4 | J27: =VLOOKUP(B27,'Salary Information'!$A:$L,MATCH($J$1,'Salary Information'!$A$1:$L$1,0),FALSE) -> 416.2385321 | K27: 1750 | M27: 80719851 | N27: d.rayner@wrl.unsw.edu.au
A28: Ruprecht, Jamie | B28: General Staff 7 1 | C28: 0.17 | D28: 185 | E28: =IF(ISNA(HLOOKUP(StaffDetails!A28,'Project Information'!$D$13:$J$14,2,FALSE)),D28,(HLOOKUP(StaffDetails!A28,'Project Information'!$D$13:$J$14,2,FALSE))) -> 185 | G28: General Staff | H28: 7 | I28: 1 | J28: =VLOOKUP(B28,'Salary Information'!$A:$L,MATCH($J$1,'Salary Information'!$A$1:$L$1,0),FALSE) -> 384.5911448 | K28: 1295 | M28: 80719854 | N28: j.ruprecht@wrl.unsw.edu.au
A29: Smith, Grantley | B29: General Staff 10+ Min | C29: 0.17 | D29: 320 | E29: =IF(ISNA(HLOOKUP(StaffDetails!A29,'Project Information'!$D$13:$J$14,2,FALSE)),D29,(HLOOKUP(StaffDetails!A29,'Project Information'!$D$13:$J$14,2,FALSE))) -> 320 | G29: General Staff | H29: 10+ | I29: Min | J29: =VLOOKUP(B29,'Salary Information'!$A:$L,MATCH($J$1,'Salary Information'!$A$1:$L$1,0),FALSE) -> 544.9421619 | K29: 2240 | M29: 80719862 | N29: G.Smith@wrl.unsw.edu.au
A30: Tucker, Toby | B30: General Staff 5 5 | C30: 0.17 | D30: 185 | E30: =IF(ISNA(HLOOKUP(StaffDetails!A30,'Project Information'!$D$13:$J$14,2,FALSE)),D30,(HLOOKUP(StaffDetails!A30,'Project Information'!$D$13:$J$14,2,FALSE))) -> 185 | G30: General Staff | H30: 5 | I30: 5 | J30: =VLOOKUP(B30,'Salary Information'!$A:$L,MATCH($J$1,'Salary Information'!$A$1:$L$1,0),FALSE) -> 338.8831272 | K30: 1295 | M30: 80719844 | N30: t.tucker@wrl.unsw.edu.au

Sheet Salary Information (hidden)
B1: 2019-07-01 | C1: 2020-07-01 | D1: 2021-01-01 | E1: 2021-07-01 | F1: 2022-01-01
A2: Salary Information | P2: https://www.hr.unsw.edu.au/services/salaries/acadsal.html
B3: Daily Rate | P3: Updated 16/07/2019 from UNSW HR Website
B4: =B5&B6 -> 2019 1 Jul - 30 Jun | C4: =C5&C6 -> 2020 30 Jun - 31 Dec | D4: 2021 1 Jan - 30 Jun | E4: =E5&E6 -> 2022 1 Jul - 31 Dec | F4: 2022 1 Jan - 30 Jun | G4: 2023 1 Jul - 31 Dec | H4: =H5&H6 -> 2019 1 Jul - 30 Jun | I4: =I5&I6 -> 2020 30 Jun - 31 Dec | J4: =J5&J6 -> 2021 1 Jan - 30 Jun | K4: 2022 1 Jul - 31 Dec | L4: 2022 1 Jan - 30 Jun | M4: =M5&M6 -> 2023 1 Jul - 31 Dec
B5: =H5 -> 2019 | C5: =I5 -> 2020 | D5: 2021 | E5: 2022 | F5: 2022 | G5: 2023 | H5: 2019 | I5: 2020 | J5: 2021 | K5: 2022 | L5: 2022 | M5: =K5+1 -> 2023
A6: Category | B6: =H6 -> 1 Jul - 30 Jun | C6: =I6 -> 30 Jun - 31 Dec | D6: 1 Jan - 30 Jun | E6: 1 Jul - 31 Dec | F6: 1 Jan - 30 Jun | G6: 1 Jul - 31 Dec | H6: 1 Jul - 30 Jun | I6: 30 Jun - 31 Dec | J6: 1 Jan - 30 Jun | K6: 1 Jul - 31 Dec | L6: 1 Jan - 30 Jun | M6: 1 Jul - 31 Dec
A7: Academic Staff A 1 | B7: =H7/250.7 -> 305.4248105 | C7: =I7/250.7 -> 308.4802553 | D7: 311.5636219 | E7: 314.6788991 | F7: 317.826087 | G7: 0 | H7: 76570 | I7: 77336 | J7: 78109 | K7: 78890 | L7: 79679 | N7: 79679
A8: Academic Staff A 2 | B8: =H8/250.7 -> 321.5755884 | C8: =I8/250.7 -> 324.7905864 | D8: =J8/250.7 -> 328.037495 | E8: =K8/250.7 -> 331.3163143 | F8: =L8/250.7 -> 334.6310331 | G8: =M8/250.7 -> 0 | H8: 80619 | I8: 81425 | J8: 82239 | K8: 83061 | L8: 83892 | N8: 83892
A9: Academic Staff A 3 | B9: 337.8859194 | C9: 341.2644595 | D9: 344.6788991 | E9: 348.1252493 | F9: 351.607499 | G9: 0 | H9: 84708 | I9: 85555 | J9: 86411 | K9: 87275 | L9: 88148 | N9: 88148
A10: Academic Staff A 4 | B10: 354.208217 | C10: 357.7502992 | D10: 361.3282808 | E10: 364.9421619 | F10: 368.5919426 | G10: 0 | H10: 88800 | I10: 89688 | J10: 90585 | K10: 91491 | L10: 92406 | N10: 92406
A11: Academic Staff A 5 | B11: 367.4750698 | C11: 371.1527722 | D11: 374.8623853 | E11: 378.6118867 | F11: 382.3972876 | G11: 0 | H11: 92126 | I11: 93048 | J11: 93978 | K11: 94918 | L11: 95867 | N11: 95867 | V11: 01/07/2019^ | W11: 01/07/2020^ | X11: 01/01/2021^ | Y11: 01/07/2021^ | Z11: 01/01/2022^
A12: Academic Staff A 6 | B12: 380.7299561 | C12: 384.53929 | D12: 388.3845233 | E12: 392.269645 | F12: 396.1906661 | G12: 0 | H12: 95449 | I12: 96404 | J12: 97368 | K12: 98342 | L12: 99325 | N12: 99325 | V12: 0.02 | W12: 0.01 | X12: 0.01 | Y12: 0.01 | Z12: 0.01
A13: Academic Staff A | B13: 393.9848424 | C13: 397.9258077 | D13: 401.9066613 | E13: 405.9234144 | F13: 409.9840447 | G13: 0 | H13: 98772 | I13: 99760 | J13: 100758 | K13: 101765 | L13: 102783 | N13: 102783
A14: Academic Staff A | B14: 407.2237734 | C14: 411.2963702 | D14: 415.4088552 | E14: 419.5652174 | F14: 423.7614679 | G14: 0 | H14: 102091 | I14: 103112 | J14: 104143 | K14: 105185 | L14: 106237 | N14: 106237
A15: Academic Staff B 1 | B15: 427.6426007 | C15: 431.9186278 | D15: 436.2385321 | E15: 440.6023135 | F15: 445.0059832 | G15: 0 | H15: 107210 | I15: 108282 | J15: 109365 | K15: 110459 | L15: 111563 | N15: 135504
A16: Academic Staff B 2 | B16: 442.9278022 | C16: 447.3554049 | D16: 451.8308736 | E16: 456.3502194 | F16: 460.9134424 | G16: 0 | H16: 111042 | I16: 112152 | J16: 113274 | K16: 114407 | L16: 115551 | N16: 139495
A17: Academic Staff B 3 | B17: 458.2130036 | C17: 462.7921819 | D17: 467.423215 | E17: 472.0941364 | F17: 476.8169126 | G17: 0 | H17: 114874 | I17: 116022 | J17: 117183 | K17: 118354 | L17: 119538 | N17: 143484
A18: Academic Staff B 4 | B18: 473.5341045 | C18: 478.2688472 | D18: 483.0514559 | E18: 487.8819306 | F18: 492.7602712 | G18: 0 | H18: 118715 | I18: 119902 | J18: 121101 | K18: 122312 | L18: 123535 | N18: 147477
A19: Academic Staff B 5 | B19: 488.8232948 | C19: 493.7096131 | D19: 498.6477862 | E19: 503.6338253 | F19: 508.6717192 | G19: 0 | H19: 122548 | I19: 123773 | J19: 125011 | K19: 126261 | L19: 127524 | N19: 151465
A20: Academic Staff B 6 | B20: 504.1324292 | C20: 509.1743119 | D20: 514.2640606 | E20: 519.4056641 | F20: 524.5991225 | G20: 0 | H20: 126386 | I20: 127650 | J20: 128926 | K20: 130215 | L20: 131517 | N20: 155460
A21: Academic Staff C 1 | B21: 519.409653 | C21: 524.6071001 | D21: 529.8524132 | E21: 535.1495812 | F21: 540.5025927 | G21: 0 | H21: 130216 | I21: 131519 | J21: 132834 | K21: 134162 | L21: 135504 | N21: 135504
A22: Academic Staff C 2 | B22: 534.7108097 | C22: 540.0598325 | D22: 545.46071 | E22: 550.9134424 | F22: 556.4220183 | G22: 0 | H22: 134052 | I22: 135393 | J22: 136747 | K22: 138114 | L22: 139495 | N22: 139495
A23: Academic Staff C 3 | B23: 550 | C23: 555.5005983 | D23: 561.0570403 | E23: 566.6653371 | F23: 572.3334663 | G23: 0 | H23: 137885 | I23: 139264 | J23: 140657 | K23: 142063 | L23: 143484 | N23: 143484
A24: Academic Staff C 4 | B24: 565.3051456 | C24: 570.9573195 | D24: 576.6693259 | E24: 582.4371759 | F24: 588.2608696 | G24: 0 | H24: 141722 | I24: 143139 | J24: 144571 | K24: 146017 | L24: 147477 | N24: 147477
A25: Academic Staff C 5 | B25: 580.5943359 | C25: 586.4020742 | D25: 592.2656562 | E25: 598.1890706 | F25: 604.1683287 | G25: 0 | H25: 145555 | I25: 147011 | J25: 148481 | K25: 149966 | L25: 151465 | N25: 151465
A26: Academic Staff C 6 | B26: 595.9074591 | C26: 601.866773 | D26: 607.8859194 | E26: 613.9648983 | F26: 620.1037096 | G26: 0 | H26: 149394 | I26: 150888 | J26: 152397 | K26: 153921 | L26: 155460 | N26: 155460
A27: Academic Staff D 1 | B27: 621.4000798 | C27: 627.6146789 | D27: 633.8930993 | E27: 640.2313522 | F27: 646.6334264 | G27: 0 | H27: 155785 | I27: 157343 | J27: 158917 | K27: 160506 | L27: 162111 | N27: 162111
A28: Academic Staff D 2 | B28: 641.7790187 | C28: 648.1970483 | D28: 654.6788991 | E28: 661.2245712 | F28: 667.8380535 | G28: 0 | H28: 160894 | I28: 162503 | J28: 164128 | K28: 165769 | L28: 167427 | N28: 167427
A29: Academic Staff D 3 | B29: 662.1699242 | C29: 668.7913841 | D29: 675.4806542 | E29: 682.2337455 | F29: 689.0586358 | G29: 0 | H29: 166006 | I29: 167666 | J29: 169343 | K29: 171036 | L29: 172747 | N29: 172747
A30: Academic Staff D 4 | B30: 682.5688073 | C30: 689.3936976 | D30: 696.2863981 | E30: 703.2508975 | F30: 710.283207 | G30: 0 | H30: 171120 | I30: 172831 | J30: 174559 | K30: 176305 | L30: 178068 | N30: 178068
A31: Academic Staff E 1 | B31: 794.7586757 | C31: 802.7044276 | D31: 810.733945 | E31: 818.8392501 | F31: 827.0283207 | G31: 0 | H31: 199246 | I31: 201238 | J31: 203251 | K31: 205283 | L31: 207336 | N31: 207336
A32: General Staff 1 1 | B32: 196.7251695 | C32: 198.6916633 | D32: 200.6781013 | E32: 202.6884723 | F32: 204.7147986 | G32: 0 | H32: 49319 | I32: 49812 | J32: 50310 | K32: 50814 | L32: 51322 | N32: 51322
A33: General Staff 1 2 | B33: 202.1938572 | C33: 204.2161947 | D33: 206.2584763 | E33: 208.320702 | F33: 210.4068608 | G33: 0 | H33: 50690 | I33: 51197 | J33: 51709 | K33: 52226 | L33: 52749 | N33: 52749
A34: General Staff 1 3 | B34: 207.6705225 | C34: 209.7447148 | D34: 211.84284 | E34: 213.9609095 | F34: 216.1029118 | G34: 0 | H34: 52063 | I34: 52583 | J34: 53109 | K34: 53640 | L34: 54177 | N34: 54177
A35: General Staff 1 4 | B35: 213.143199 | C35: 215.2732349 | D35: 217.4272038 | E35: 219.6011169 | F35: 221.7989629 | G35: 0 | H35: 53435 | I35: 53969 | J35: 54509 | K35: 55054 | L35: 55605 | N35: 55605
A36: General Staff 1 5 | B36: 218.5959314 | C36: 220.7818109 | D36: 222.9916235 | E36: 225.2213801 | F36: 227.471081 | G36: 0 | H36: 54802 | I36: 55350 | J36: 55904 | K36: 56463 | L36: 57027 | N36: 57027
A37: General Staff 2 1 | B37: 224.3797367 | C37: 226.6254487 | D37: 228.8911049 | E37: 231.1806941 | F37: 233.4902274 | G37: 0 | H37: 56252 | I37: 56815 | J37: 57383 | K37: 57957 | L37: 58536 | N37: 58536
A38: General Staff 2 2 | B38: 230.0398883 | C38: 232.341444 | D38: 234.6669326 | E38: 237.0123654 | F38: 239.3817312 | G38: 0 | H38: 57671 | I38: 58248 | J38: 58831 | K38: 59419 | L38: 60013 | N38: 60013
A39: General Staff 3 1 | B39: 236.9166334 | C39: 239.2859992 | D39: 241.679298 | E39: 244.0965297 | F39: 246.5376945 | G39: 0 | H39: 59395 | I39: 59989 | J39: 60589 | K39: 61195 | L39: 61807 | N39: 61807
A40: General Staff 3 2 | B40: 243.7854009 | C40: 246.2225768 | D40: 248.6876745 | E40: 251.1727164 | F40: 253.6856801 | G40: 0 | H40: 61117 | I40: 61728 | J40: 62346 | K40: 62969 | L40: 63599 | N40: 63599
A41: General Staff 3 3 | B41: 250.6461907 | C41: 253.1511767 | D41: 255.6840846 | E41: 258.2409254 | F41: 260.8216992 | G41: 0 | H41: 62837 | I41: 63465 | J41: 64100 | K41: 64741 | L41: 65388 | N41: 65388
A42: General Staff 3 4 | B42: 257.5109693 | C42: 260.0837655 | D42: 262.6844834 | E42: 265.3131233 | F42: 267.9656961 | G42: 0 | H42: 64558 | I42: 65203 | J42: 65855 | K42: 66514 | L42: 67179 | N42: 67179
A43: General Staff 3 5 | B43: 264.3677702 | C43: 267.0083765 | D43: 269.6808935 | E43: 272.3773434 | F43: 275.1017152 | G43: 0 | H43: 66277 | I43: 66939 | J43: 67609 | K43: 68285 | L43: 68968 | N43: 68968
A44: General Staff 4 1 | B44: 271.8468289 | C44: 274.5672118 | D44: 277.3115277 | E44: 280.0877543 | F44: 282.8879138 | G44: 0 | H44: 68152 | I44: 68834 | J44: 69522 | K44: 70218 | L44: 70920 | N44: 70920
A45: General Staff 4 2 | B45: 279.2979657 | C45: 282.0901476 | D45: 284.9102513 | E45: 287.7622657 | F45: 290.638213 | G45: 0 | H45: 70020 | I45: 70720 | J45: 71427 | K45: 72142 | L45: 72863 | N45: 72863
A46: General Staff 4 3 | B46: 286.7690467 | C46: 289.6370164 | D46: 292.5329079 | E46: 295.4567212 | F46: 298.4124452 | G46: 0 | H46: 71893 | I46: 72612 | J46: 73338 | K46: 74071 | L46: 74812 | N46: 74812
A47: General Staff 5 1 | B47: 296.5217391 | C47: 299.4854408 | D47: 302.4810531 | E47: 305.5045872 | F47: 308.5600319 | G47: 0 | H47: 74338 | I47: 75081 | J47: 75832 | K47: 76590 | L47: 77356 | N47: 77356
A48: General Staff 5 2 | B48: 306.2584763 | C48: 309.3218987 | D48: 312.4172318 | E48: 315.5404866 | F48: 318.6956522 | G48: 0 | H48: 76779 | I48: 77547 | J48: 78323 | K48: 79106 | L48: 79897 | N48: 79897
A49: General Staff 5 3 | B49: 316.0111687 | C49: 319.1743119 | D49: 322.3653769 | E49: 325.5883526 | F49: 328.8432389 | G49: 0 | H49: 79224 | I49: 80017 | J49: 80817 | K49: 81625 | L49: 82441 | N49: 82441
A50: General Staff 5 4 | B50: 325.7558835 | C50: 329.0147587 | D50: 332.3055445 | E50: 335.6282409 | F50: 338.982848 | G50: 0 | H50: 81667 | I50: 82484 | J50: 83309 | K50: 84142 | L50: 84983 | N50: 84983
A51: General Staff 5 5 | B51: 335.5245313 | C51: 338.8831272 | D51: 342.269645 | E51: 345.6920622 | F51: 349.1503789 | G51: 0 | H51: 84116 | I51: 84958 | J51: 85807 | K51: 86665 | L51: 87532 | N51: 87532
A52: General Staff 6 1 | B52: 347.1599521 | C52: 350.6302353 | D52: 354.136418 | E52: 357.6785002 | F52: 361.252493 | G52: 0 | H52: 87033 | I52: 87903 | J52: 88782 | K52: 89670 | L52: 90566 | N52: 90566
A53: General Staff 6 2 | B53: 358.6717192 | C53: 362.2576785 | D53: 365.8795373 | E53: 369.5372956 | F53: 373.2349422 | G53: 0 | H53: 89919 | I53: 90818 | J53: 91726 | K53: 92643 | L53: 93570 | N53: 93570
A54: General Staff 6 3 | B54: 370.3350618 | C54: 374.0406861 | D54: 377.778221 | E54: 381.5556442 | F54: 385.3729557 | G54: 0 | H54: 92843 | I54: 93772 | J54: 94709 | K54: 95656 | L54: 96613 | N54: 96613
A55: General Staff 7 1 | B55: 380.7818109 | C55: 384.5911448 | D55: 388.4363781 | E55: 392.317511 | F55: 396.2425209 | G55: 0 | H55: 95462 | I55: 96417 | J55: 97381 | K55: 98354 | L55: 99338 | N55: 99338
A56: General Staff 7 2 | B56: 391.22856 | C56: 395.1376147 | D56: 399.0905465 | E56: 403.0833666 | F56: 407.1120862 | G56: 0 | H56: 98081 | I56: 99061 | J56: 100052 | K56: 101053 | L56: 102063 | N56: 102063
A57: General Staff 7 3 | B57: 401.6673315 | C57: 405.6840846 | D57: 409.740726 | E57: 413.8372557 | F57: 417.9776625 | G57: 0 | H57: 100698 | I57: 101705 | J57: 102722 | K57: 103749 | L57: 104787 | N57: 104787
A58: General Staff 7 4 | B58: 412.1180694 | C58: 416.2385321 | D58: 420.402872 | E58: 424.6071001 | F58: 428.8512166 | G58: 0 | H58: 103318 | I58: 104351 | J58: 105395 | K58: 106449 | L58: 107513 | N58: 107513
A59: General Staff 8 1 | B59: 425.6521739 | C59: 429.9082569 | D59: 434.208217 | E59: 438.5480654 | F59: 442.9357798 | G59: 0 | H59: 106711 | I59: 107778 | J59: 108856 | K59: 109944 | L59: 111044 | N59: 111044
A60: General Staff 8 2 | B60: 439.102513 | C60: 443.4902274 | D60: 447.9258077 | E60: 452.4052653 | F60: 456.9285999 | G60: 0 | H60: 110083 | I60: 111183 | J60: 112295 | K60: 113418 | L60: 114552 | N60: 114552
A61: General Staff 8 3 | B61: 452.6206621 | C61: 457.1479856 | D61: 461.7191863 | E61: 466.3382529 | F61: 471.0011966 | G61: 0 | H61: 113472 | I61: 114607 | J61: 115753 | K61: 116911 | L61: 118080 | N61: 118080
A62: General Staff 8 4 | B62: 466.0590347 | C62: 470.7179896 | D62: 475.4287994 | E62: 480.1794974 | F62: 484.9820503 | G62: 0 | H62: 116841 | I62: 118009 | J62: 119190 | K62: 120381 | L62: 121585 | N62: 121585
A63: General Staff 8 5 | B63: 479.5891504 | C63: 484.3837256 | D63: 489.2261667 | E63: 494.1204627 | F63: 499.0626247 | G63: 0 | H63: 120233 | I63: 121435 | J63: 122649 | K63: 123876 | L63: 125115 | N63: 125115
A64: General Staff 9 1 | B64: 494.7068209 | C64: 499.6529717 | D64: 504.6509773 | E64: 509.6968488 | F64: 514.7945752 | G64: 0 | H64: 124023 | I64: 125263 | J64: 126516 | K64: 127781 | L64: 129059 | N64: 129059
A65: General Staff 9 2 | B65: 509.8324691 | C65: 514.9301955 | D65: 520.0797766 | E65: 525.2812126 | F65: 530.5345034 | G65: 0 | H65: 127815 | I65: 129093 | J65: 130384 | K65: 131688 | L65: 133005 | N65: 133005
A66: General Staff 9 3 | B66: 524.9341843 | C66: 530.1834862 | D66: 535.484643 | E66: 540.8416434 | F66: 546.2504986 | G66: 0 | H66: 131601 | I66: 132917 | J66: 134246 | K66: 135589 | L66: 136945 | N66: 136945
A67: General Staff 10+ Min | B67: 539.5452732 | C67: 544.9421619 | D67: 550.3909055 | E67: 555.8954926 | F67: 561.4559234 | G67: 0 | H67: 135264 | I67: 136617 | J67: 137983 | K67: 139363 | L67: 140757 | N67: 140757
A68: Casual (General) Staff 1 1
A69: Casual (General) Staff 1 2
A70: Casual (General) Staff 2 1
A71: Casual (General) Staff 2 2
A72: Casual (General) Staff 3 1
A73: Casual (General) Staff 3 2
A74: Casual (General) Staff 4 1
A75: Casual (General) Staff 4 2
A76: Casual (General) Staff 5 1
A77: Casual (General) Staff 5 2
A78: Casual (General) Staff 6 1
A79: Casual (General) Staff 6 2
A80: Casual (General) Staff 7 1
A81: Casual (General) Staff 7 2
A82: Casual (General) Staff 8 1
A83: Casual (General) Staff 8 2
A84: Casual (General) Staff 9 1
A85: Casual (General) Staff 9 2
